bitfinex/quotes_BTCUSD_20220226
["timestamp","ask_amount","ask_price","bid_price","bid_amount"]
[1645865973703,0.0002816,38778.0,38774.0,0.19534989]
[1645865974104,0.01031,38785.0,38774.0,0.24534989]
[1645865974305,0.0002816,38778.0,38774.0,0.24534989]
[1645865974905,0.0002816,38778.0,38775.0,0.064469]
[1645865975106,0.31084093,38786.0,38776.0,0.35]
[1645865975306,0.3144011,38787.0,38776.0,0.4]
[1645865975505,0.3144011,38787.0,38776.0,0.05]
[1645865975710,0.3144011,38787.0,38776.0,0.002]
[1645865975960,0.3144011,38787.0,38777.0,0.064469]
[1645865976165,0.3144011,38787.0,38779.0,0.17807194]
[1645865976760,0.3144011,38787.0,38781.0,7.083e-05]
[1645865977763,0.3144011,38787.0,38779.0,0.22807194]
[1645865977962,0.3144011,38787.0,38782.0,7.083e-05]
[1645865978163,0.34807502,38788.0,38782.0,7.083e-05]
[1645865978562,0.3144011,38787.0,38782.0,7.083e-05]
[1645865978763,0.34807502,38788.0,38782.0,7.083e-05]
[1645865978963,0.3144011,38787.0,38779.0,0.22807194]
[1645865979164,0.3144011,38787.0,38785.0,0.17509251]
[1645865979165,0.0002809,38786.0,38785.0,0.17509251]
[1645865979702,0.0002809,38786.0,38782.0,0.0002361]
[1645865980107,0.3144011,38787.0,38781.0,0.064463]
[1645865980303,0.0002864,38786.0,38782.0,0.00025441]
[1645865980503,0.30824384,38787.0,38782.0,0.00025441]
[1645865980704,0.3144011,38787.0,38782.0,0.00025441]
[1645865981303,0.3144011,38787.0,38781.0,0.27509849]
[1645865981705,0.3144011,38787.0,38782.0,0.002]
[1645865982907,0.3144011,38787.0,38781.0,0.27509849]
[1645865983760,0.3144011,38787.0,38781.0,0.27709849]
[1645865983964,0.34837176,38788.0,38782.0,0.00028966]
[1645865984162,0.34837176,38788.0,38781.0,0.27651917]
[1645865984363,1.05,38787.0,38781.0,0.27651917]
[1645865985061,1.36118481,38787.0,38781.0,0.04942068]
[1645865985261,1.36118481,38787.0,38777.0,0.11607]
[1645865985661,1.36118481,38787.0,38781.0,0.002]
[1645865986763,1.04678371,38787.0,38781.0,0.002]
[1645865986963,1.04678371,38787.0,38774.0,0.29234989]
[1645865987210,1.04678371,38787.0,38776.0,0.25204012]
[1645865987411,1.04678371,38787.0,38777.0,0.064469]
[1645865988115,1.04678371,38787.0,38776.0,0.1]
[1645865988511,1.04678371,38787.0,38776.0,0.05]
[1645865988717,1.04678371,38787.0,38780.0,0.00028895]
[1645865988718,0.00029674,38786.0,38780.0,0.00028895]
[1645865989715,1.046111,38787.0,38780.0,0.001]
[1645865989913,1.046111,38787.0,38780.0,0.00128895]
[1645865989914,0.00029675,38786.0,38780.0,0.00128895]
[1645865990715,0.00029675,38786.0,38782.0,0.22115939]
[1645865990971,0.34807502,38788.0,38782.0,0.22115939]
[1645865990972,0.33837177,38788.0,38782.0,0.22115939]
[1645865991166,0.00029675,38786.0,38782.0,0.22115939]
[1645865991371,0.00029675,38786.0,38782.0,0.27115939]
[1645865991570,0.00029675,38786.0,38783.0,0.07736]
[1645865991769,0.00029675,38786.0,38783.0,0.27071219]
[1645865992171,0.001,38793.0,38785.0,0.81116]
[1645865992368,0.001,38793.0,38789.0,0.81116]
[1645865992570,0.001,38793.0,38791.0,0.02576]
[1645865992767,0.001,38793.0,38792.0,1.43206]
[1645865992967,0.29190844,38809.0,38792.0,1.4063]
[1645865993167,0.29190844,38809.0,38792.0,1.5063]
[1645865993368,0.01,38809.0,38792.0,1.5563]
[1645865993569,0.00029697,38796.0,38794.0,0.19558897]
[1645865993768,0.00029697,38796.0,38795.0,1.4063]
[1645865994071,0.00029697,38796.0,38795.0,1.4563]
[1645865994267,0.00029697,38796.0,38795.0,1.546485]
[1645865994468,0.01,38809.0,38795.0,1.546485]
[1645865994707,0.01,38809.0,38795.0,1.520725]
[1645865994906,0.10019696,38797.0,38795.0,1.520725]
[1645865995508,0.10019696,38797.0,38795.0,1.5202729]
[1645865995707,0.0999,38797.0,38795.0,1.5202729]
[1645865996716,0.0999,38797.0,38795.0,1.4063]
[1645865996910,0.0999,38797.0,38795.0,1.3547]
[1645865997407,0.00029696,38798.0,38795.0,1.3547]
[1645865998308,0.3162083,38806.0,38800.0,0.05]
[1645865998558,0.00118637,38804.0,38800.0,0.05]
[1645865999365,0.0103,38808.0,38800.0,0.05]
[1645865999557,0.3419683,38810.0,38800.0,0.05]
[1645865999758,0.00029663,38804.0,38801.0,0.0516]
[1645865999961,0.00029663,38804.0,38802.0,0.19486169]
[1645866000158,0.00029663,38804.0,38802.0,0.24646169]
[1645866000361,0.00029663,38804.0,38802.0,0.29646169]
[1645866000559,0.011,38809.0,38802.0,0.29146169]
[1645866000958,0.00021048,38805.0,38802.0,0.0916]
[1645866001160,0.00021048,38805.0,38802.0,0.0516]
[1645866001760,0.00021048,38805.0,38801.0,0.64584748]
[1645866001761,0.01,38809.0,38801.0,0.64584748]
[1645866001964,0.16911837,38803.0,38801.0,0.64584748]
[1645866002212,0.3162083,38802.0,38801.0,0.64584748]
[1645866002410,0.31650042,38805.0,38801.0,0.64584748]
[1645866002610,0.34226042,38805.0,38801.0,0.64584748]
[1645866002812,0.31650042,38805.0,38801.0,0.64584748]
[1645866003011,0.26943411,38802.0,38801.0,0.64584748]
[1645866003611,0.25078389,38802.0,38801.0,0.64584748]
[1645866004111,0.28371639,38802.0,38801.0,0.64584748]
[1645866004516,0.0329325,38802.0,38801.0,0.64584748]
[1645866005711,0.0329325,38802.0,38801.0,0.64684748]
[1645866006158,0.0329325,38802.0,38801.0,0.64184748]
[1645866006757,0.18340065,38802.0,38801.0,0.64184748]
[1645866006957,0.18340065,38802.0,38801.0,0.64084748]
[1645866007457,0.49960895,38802.0,38801.0,0.64084748]
[1645866007658,0.03557347,38800.0,38788.0,0.23881801]
[1645866007858,0.25078389,38798.0,38796.0,0.001]
[1645866008059,1.2,38796.0,38795.0,1.2418]
[1645866008257,1.2,38796.0,38782.0,0.00023163]
[1645866008258,0.10031574,38789.0,38782.0,0.00023163]
[1645866008460,0.46874153,38788.0,38782.0,0.00023163]
[1645866008657,0.02576,38793.0,38782.0,0.00023163]
[1645866008658,0.34403338,38793.0,38782.0,0.00023163]
[1645866008858,0.34403338,38793.0,38786.0,0.19900616]
[1645866009262,0.25078389,38791.0,38790.0,0.72956282]
[1645866009460,0.31827338,38791.0,38790.0,0.72956282]
[1645866009707,0.41992338,38794.0,38790.0,0.72956282]
[1645866009913,0.25078389,38791.0,38790.0,0.72956282]
[1645866010113,0.31827338,38791.0,38790.0,0.72956282]
[1645866010308,0.10031574,38793.0,38790.0,0.72956282]
[1645866011209,0.15046815,38794.0,38790.0,0.72956282]
[1645866011210,0.0329325,38792.0,38790.0,0.72956282]
[1645866011712,0.0329325,38792.0,38790.0,0.78056282]
[1645866011913,1.07677347,38800.0,38791.0,0.31902482]
[1645866012111,0.03557347,38800.0,38792.0,0.0516]
[1645866012311,0.03557347,38800.0,38793.0,0.23285874]
[1645866012516,0.03557347,38800.0,38793.0,0.18125874]
[1645866012712,0.03224559,38795.0,38793.0,0.23125874]
[1645866012912,0.00020921,38798.0,38793.0,0.23125874]
[1645866013113,0.00020921,38798.0,38790.0,0.77956282]
[1645866013312,0.00020921,38798.0,38790.0,0.72956282]
[1645866013562,0.02596921,38798.0,38790.0,0.72956282]
[1645866013760,0.15046815,38796.0,38790.0,0.72956282]
[1645866013961,0.03557347,38800.0,38790.0,0.72956282]
[1645866013962,0.03557347,38800.0,38790.0,0.77956282]
[1645866014161,0.03557347,38800.0,38795.0,0.1711378]
[1645866014162,0.00020921,38796.0,38795.0,0.1711378]
[1645866014360,0.00020921,38796.0,38790.0,0.05]
[1645866014361,0.3422756,38794.0,38791.0,0.0516]
[1645866014560,0.3422756,38794.0,38792.0,0.064443]
[1645866014760,0.3422756,38794.0,38792.0,0.0639913]
[1645866015362,0.3422756,38794.0,38793.0,0.18961791]
[1645866015562,0.3422756,38794.0,38793.0,0.23961791]
[1645866015761,0.37452119,38794.0,38793.0,0.23961791]
[1645866017208,0.36435102,38794.0,38790.0,0.013015]
[1645866017412,0.33210543,38794.0,38790.0,0.013015]
[1645866017609,0.31914078,38793.0,38790.0,0.013015]
[1645866017813,0.18271374,38792.0,38790.0,0.013015]
[1645866018008,0.31914078,38791.0,38790.0,0.013015]
[1645866019008,0.33210543,38794.0,38790.0,0.013015]
[1645866019009,0.00029679,38792.0,38790.0,0.013015]
[1645866019908,0.31914078,38793.0,38790.0,0.013015]
[1645866020108,0.10031574,38792.0,38790.0,0.013015]
[1645866020311,0.46960893,38791.0,38790.0,0.013015]
[1645866020708,0.50185452,38791.0,38790.0,0.013015]
[1645866021561,0.10031574,38786.0,38782.0,0.00029201]
[1645866021763,0.35138637,38791.0,38782.0,0.00029201]
[1645866021764,0.10031574,38783.0,38782.0,0.00029201]
[1645866021961,0.41945652,38783.0,38782.0,0.00029201]
[1645866022363,0.02576,38782.0,38773.0,0.19126529]
[1645866022562,0.56992467,38783.0,38781.0,0.00029202]
[1645866022763,0.31414078,38782.0,38781.0,0.00029202]
[1645866023170,0.70419178,38782.0,38781.0,0.00029202]
[1645866023365,0.75579178,38782.0,38781.0,0.00029202]
[1645866023565,0.02576,38781.0,38769.0,0.05110811]
[1645866023764,0.05800559,38776.0,38769.0,0.00110811]
[1645866023964,0.34490078,38775.0,38769.0,0.00110811]
[1645866024169,0.15046815,38771.0,38769.0,0.00110811]
[1645866024570,0.15046815,38771.0,38770.0,0.72956282]
[1645866024815,0.25078389,38775.0,38770.0,0.72956282]
[1645866025413,0.03224559,38771.0,38770.0,0.72956282]
[1645866025816,0.03224559,38771.0,38770.0,0.73156282]
[1645866026812,0.18271374,38771.0,38770.0,0.73156282]
[1645866027014,0.03224559,38771.0,38770.0,0.73156282]
[1645866027212,0.03224559,38771.0,38770.0,0.72956282]
[1645866027812,0.03224559,38771.0,38770.0,0.73056282]
[1645866029058,0.03224559,38771.0,38770.0,0.72956282]
[1645866029861,0.03324559,38771.0,38770.0,0.72956282]
[1645866030061,0.18371374,38771.0,38770.0,0.72956282]
[1645866030661,0.50285452,38771.0,38770.0,0.72956282]
[1645866031262,0.50185452,38771.0,38770.0,0.72956282]
[1645866031862,0.50185452,38771.0,38770.0,0.73056282]
[1645866032065,0.60185452,38771.0,38770.0,0.6617889]
[1645866032314,1.04350552,38771.0,38770.0,2.08e-06]
[1645866032512,0.66376452,38771.0,38770.0,2.08e-06]
[1645866032912,0.56376452,38771.0,38769.0,0.0001023]
[1645866033113,0.01031,38770.0,38764.0,0.18764028]
[1645866033312,0.03224559,38768.0,38764.0,0.18764028]
[1645866033512,0.25078389,38766.0,38764.0,0.18764028]
[1645866033916,0.25078389,38766.0,38759.0,0.001]
[1645866034515,0.25078389,38766.0,38762.0,0.0011802]
[1645866034916,0.03224559,38764.0,38762.0,0.23462703]
[1645866035515,0.03224559,38764.0,38762.0,0.23454683]
[1645866035715,0.25078389,38766.0,38762.0,0.23454683]
[1645866036465,0.03224559,38764.0,38762.0,0.23454683]
[1645866036664,0.25078389,38766.0,38762.0,0.23454683]
[1645866037065,0.31532232,38765.0,38762.0,0.23454683]
[1645866037366,0.25078389,38766.0,38762.0,0.23454683]
[1645866037964,0.03224559,38764.0,38762.0,0.23454683]
[1645866038165,0.25078389,38766.0,38762.0,0.23454683]
[1645866039567,0.03224559,38764.0,38762.0,0.23454683]
[1645866039811,0.25078389,38766.0,38762.0,0.23454683]
[1645866040613,0.31532232,38765.0,38762.0,0.0011]
[1645866041015,0.15046815,38763.0,38762.0,0.0011]
[1645866041212,0.56610621,38763.0,38762.0,0.0011]
[1645866041421,1.2,38762.0,38759.0,0.001]
[1645866041615,0.31532232,38761.0,38759.0,0.001]
[1645866042216,0.02576,38776.0,38759.0,0.001]
[1645866042415,0.5,38781.0,38771.0,0.04953185]
[1645866042616,0.00029373,38784.0,38780.0,0.1]
[1645866042815,0.33210543,38794.0,38783.0,0.1]
[1645866043016,0.33210543,38794.0,38790.0,0.1]
[1645866043215,0.00083807,38791.0,38790.0,0.1]
[1645866043478,0.00083807,38791.0,38790.0,0.1016]
[1645866043479,0.00043362,38791.0,38790.0,0.1016]
[1645866043669,0.00043362,38791.0,38790.0,0.1516]
[1645866044074,0.03224559,38791.0,38790.0,0.1516]
[1645866044269,0.33210543,38794.0,38790.0,0.6516]
[1645866044469,0.33210543,38794.0,38790.0,0.716046]
[1645866044669,0.33210543,38794.0,38790.0,0.5516]
[1645866044870,0.33210543,38794.0,38790.0,0.5]
[1645866044871,0.59590674,38794.0,38790.0,0.5]
[1645866045069,0.33210543,38794.0,38790.0,0.5]
[1645866045269,0.02576,38793.0,38784.0,0.82503]
[1645866045470,0.02576,38793.0,38785.0,0.05]
[1645866045670,0.15046815,38792.0,38787.0,0.23457499]
[1645866045868,0.25078389,38792.0,38787.0,0.23457499]
[1645866046068,0.27654389,38792.0,38784.0,0.87503]
[1645866046673,0.27654389,38792.0,38784.0,0.92503]
[1645866047070,0.15046815,38792.0,38784.0,0.92503]
[1645866047318,0.33210543,38794.0,38784.0,0.92503]
[1645866047917,0.00029389,38793.0,38786.0,0.064465]
[1645866048117,0.00029389,38793.0,38791.0,0.1682039]
[1645866048717,0.33210543,38794.0,38791.0,0.1682039]
[1645866049118,0.33239932,38794.0,38791.0,0.1682039]
[1645866049424,0.21072198,38794.0,38791.0,0.1682039]
[1645866050020,0.21042809,38794.0,38791.0,0.2682039]
[1645866050227,0.21042809,38794.0,38791.0,0.3326599]
[1645866050424,0.21042809,38794.0,38792.0,0.128894]
[1645866051260,0.12607574,38804.0,38793.0,0.55]
[1645866051463,0.12607574,38804.0,38797.0,0.18040632]
[1645866051464,0.00117633,38801.0,38797.0,0.18040632]
[1645866052461,0.24678545,38804.0,38797.0,0.18040632]
[1645866052762,0.00020889,38801.0,38797.0,0.28040632]
[1645866053462,0.00020889,38801.0,38797.0,0.34484332]
[1645866053662,0.14646971,38807.0,38798.0,0.128874]
[1645866053863,0.00020889,38801.0,38798.0,0.128874]
[1645866054264,0.14251405,38807.0,38799.0,1.1]
[1645866054807,0.1416786,38808.0,38799.0,1.1]
[1645866055212,0.01,38809.0,38801.0,0.06443]
[1645866055511,0.01,38809.0,38803.0,0.178857]
[1645866056114,0.01,38809.0,38803.0,0.05]
[1645866056411,0.00029433,38808.0,38801.0,0.063287]
[1645866056613,0.1416786,38807.0,38801.0,0.063287]
[1645866056814,0.10061007,38808.0,38801.0,0.063287]
[1645866056815,0.10031574,38804.0,38801.0,0.063287]
[1645866057215,0.00029433,38808.0,38801.0,0.012887]
[1645866057216,0.1416786,38807.0,38801.0,0.012887]
[1645866057613,0.00029434,38804.0,38801.0,0.012887]
[1645866058466,0.1416786,38808.0,38801.0,0.012887]
[1645866058658,0.00029434,38804.0,38801.0,0.012887]
[1645866058957,0.00029434,38804.0,38803.0,0.17501151]
[1645866059657,0.01,38809.0,38803.0,0.17501151]
[1645866059866,0.00029434,38805.0,38803.0,0.22701151]
[1645866060463,0.00029434,38805.0,38803.0,0.27701151]
[1645866060662,0.00029434,38805.0,38804.0,0.064431]
[1645866060859,0.01,38809.0,38804.0,0.064431]
[1645866061061,0.01,38809.0,38804.0,0.111831]
[1645866061761,0.01,38809.0,38804.0,0.0474]
[1645866062215,0.00020897,38808.0,38804.0,0.0474]
[1645866063216,0.01,38809.0,38804.0,0.0474]
[1645866063916,0.01,38809.0,38804.0,0.0494]
[1645866064119,0.01,38809.0,38804.0,0.002]
[1645866064319,0.1416786,38807.0,38804.0,0.002]
[1645866064517,0.11031574,38809.0,38804.0,0.002]
[1645866064718,0.00029441,38808.0,38804.0,0.002]
[1645866065118,0.00029441,38808.0,38804.0,0.23609191]
[1645866065721,0.01,38809.0,38804.0,0.33609191]
[1645866065957,0.01,38809.0,38804.0,0.33809191]
[1645866065958,0.00029441,38808.0,38804.0,0.33809191]
[1645866066657,0.00029441,38808.0,38805.0,0.0474]
[1645866066857,0.01,38809.0,38805.0,0.0474]
[1645866067058,0.00020881,38808.0,38805.0,0.0474]
[1645866067258,0.06094394,38814.0,38806.0,0.85]
[1645866067658,0.06094394,38814.0,38806.0,0.9]
[1645866067860,0.06094394,38814.0,38806.0,0.051]
[1645866068058,0.24199434,38814.0,38806.0,0.051]
[1645866068258,0.24199434,38814.0,38806.0,0.001]
[1645866068659,0.24054218,38814.0,38806.0,0.001]
[1645866068859,0.10031574,38814.0,38806.0,0.001]
[1645866069057,0.10031574,38814.0,38804.0,0.33609191]
[1645866069058,0.24054218,38814.0,38804.0,0.33609191]
[1645866069459,0.00029464,38812.0,38804.0,0.33609191]
[1645866070125,0.13552108,38816.0,38805.0,1.2]
[1645866070319,0.34831574,38817.0,38805.0,1.2]
[1645866070518,0.13552108,38816.0,38805.0,1.2]
[1645866070721,0.13552108,38816.0,38806.0,0.064425]
[1645866070920,0.13552108,38816.0,38813.0,0.18112758]
[1645866071918,0.0103,38818.0,38813.0,0.18212758]
[1645866072121,0.23583682,38821.0,38814.0,0.0474]
[1645866072325,0.2399,38824.0,38814.0,0.0474]
[1645866072519,0.23583682,38825.0,38814.0,0.0974]
[1645866072919,0.23583682,38825.0,38819.0,0.19912837]
[1645866073119,0.7534,38829.0,38819.0,0.19912837]
[1645866073320,0.10031574,38828.0,38819.0,0.29912837]
[1645866073773,0.14582108,38829.0,38819.0,0.29912837]
[1645866073774,0.0103,38829.0,38819.0,0.29912837]
[1645866073970,1.38021005,38838.0,38819.0,0.30312837]
[1645866073971,0.23583682,38831.0,38819.0,0.30312837]
[1645866074173,0.0103,38830.0,38825.0,0.17833869]
[1645866074374,0.25102919,38816.0,38815.0,0.31087322]
[1645866074572,0.25102919,38816.0,38815.0,0.7729]
[1645866075377,0.25102919,38816.0,38815.0,0.79866]
[1645866075772,0.25102919,38816.0,38815.0,0.84606]
[1645866076174,0.25102919,38816.0,38815.0,0.89606]
[1645866076373,0.25102919,38816.0,38815.0,0.94606]
[1645866076577,0.31695708,38834.0,38820.0,0.064397]
[1645866076776,0.31087322,38834.0,38821.0,0.0474]
[1645866076974,0.31087322,38834.0,38826.0,0.23975476]
[1645866077215,0.10031574,38830.0,38827.0,0.0474]
[1645866077415,0.10031574,38830.0,38821.0,0.05]
[1645866077416,0.13552108,38830.0,38821.0,0.05]
[1645866077617,0.13552108,38830.0,38820.0,0.05]
[1645866077618,0.10031574,38828.0,38820.0,0.05]
[1645866077920,0.10031574,38828.0,38822.0,0.003]
[1645866078117,0.13572951,38830.0,38822.0,0.003]
[1645866078517,0.13572951,38830.0,38827.0,0.23121273]
[1645866078715,0.10031574,38831.0,38827.0,0.23121273]
[1645866078716,0.23104525,38831.0,38827.0,0.23121273]
[1645866078916,0.2281,38835.0,38827.0,0.23121273]
[1645866079118,0.00029569,38830.0,38827.0,0.23121273]
[1645866079917,0.00029569,38830.0,38827.0,0.23321273]
[1645866080116,0.00226861,38836.0,38827.0,0.23321273]
[1645866080319,0.23104525,38831.0,38827.0,0.23321273]
[1645866080522,0.23104525,38831.0,38827.0,0.002]
[1645866080721,0.00218567,38836.0,38827.0,0.002]
[1645866080722,0.10031574,38828.0,38827.0,0.002]
[1645866081169,0.10031574,38828.0,38811.0,0.33390106]
[1645866081368,0.13072951,38829.0,38814.0,0.5]
[1645866081369,0.23104525,38829.0,38814.0,0.5]
[1645866081575,0.0103,38831.0,38820.0,0.22081677]
[1645866081768,0.23104525,38831.0,38820.0,0.22081677]
[1645866081967,0.23104525,38831.0,38820.0,0.32081677]
[1645866082968,0.23104525,38831.0,38826.0,0.21363369]
[1645866082969,0.24134525,38831.0,38826.0,0.21363369]
[1645866083370,0.23104525,38831.0,38826.0,0.21363369]
[1645866083772,0.23104525,38831.0,38820.0,0.1]
[1645866083970,0.23104525,38831.0,38821.0,0.003]
[1645866084824,0.23104525,38831.0,38824.0,0.1996328]
[1645866085325,0.0002973,38832.0,38824.0,0.1996328]
[1645866085326,0.0002973,38832.0,38825.0,0.30890106]
[1645866085526,0.0002973,38832.0,38826.0,0.0474]
[1645866086123,0.23104525,38835.0,38826.0,0.0974]
[1645866086324,0.00020991,38832.0,38826.0,0.0974]
[1645866086724,0.00020991,38832.0,38830.0,0.19567486]
[1645866086927,0.00020991,38832.0,38830.0,0.24567486]
[1645866087426,0.00432896,38836.0,38831.0,0.0474]
[1645866087728,0.00029756,38833.0,38831.0,0.0474]
[1645866088125,0.00029756,38833.0,38831.0,0.07316]
[1645866088330,0.00029756,38833.0,38832.0,0.064378]
[1645866088570,0.00432896,38836.0,38832.0,0.201907]
[1645866088774,0.00432896,38836.0,38833.0,0.05]
[1645866088775,0.00029756,38834.0,38833.0,0.05]
[1645866088969,0.00029756,38834.0,38833.0,0.0974]
[1645866089170,0.00029756,38834.0,38833.0,0.1474]
[1645866089774,0.00432896,38836.0,38833.0,0.0974]
[1645866089973,0.00029755,38835.0,38833.0,0.0974]
[1645866090874,0.00432896,38836.0,38833.0,0.0974]
[1645866091271,0.00462651,38836.0,38833.0,0.1474]
[1645866092073,0.00432896,38836.0,38833.0,0.1474]
[1645866092312,0.00432896,38836.0,38834.0,0.064376]
[1645866092513,0.00462651,38836.0,38834.0,0.064376]
[1645866093312,0.00432896,38836.0,38834.0,0.064376]
[1645866093516,0.00432896,38836.0,38834.0,0.090136]
[1645866093714,0.00432896,38836.0,38834.0,0.064376]
[1645866094114,0.00432896,38836.0,38835.0,0.0474]
[1645866094914,0.00432896,38836.0,38835.0,0.07316]
[1645866095114,0.00432896,38836.0,38835.0,0.17316]
[1645866095314,0.00432896,38836.0,38835.0,0.94565]
[1645866095517,0.00432896,38836.0,38835.0,1.19555]
[1645866095715,0.00432896,38836.0,38835.0,1.50340916]
[1645866095716,0.00255344,38836.0,38835.0,1.50340916]
[1645866095962,0.00255344,38836.0,38835.0,1.50840916]
[1645866096166,0.02504722,38839.0,38837.0,0.02576]
[1645866096362,0.02135357,38844.0,38840.0,0.090114]
[1645866096564,0.00222624,38841.0,38840.0,0.211754]
[1645866096762,0.00222624,38841.0,38840.0,0.35432011]
[1645866097563,0.00077511,38841.0,38840.0,0.35432011]
[1645866097962,0.00077511,38841.0,38840.0,0.36032011]
[1645866098563,8.295e-05,38841.0,38840.0,0.36032011]
[1645866098966,0.00445569,38842.0,38840.0,0.36032011]
[1645866099162,0.00445569,38842.0,38840.0,0.35432011]
[1645866099364,0.00424601,38842.0,38840.0,0.35432011]
[1645866099565,0.00252553,38844.0,38841.0,0.95]
[1645866099810,0.00252553,38844.0,38842.0,0.0474]
[1645866100010,0.00025691,38844.0,38842.0,0.0474]
[1645866100609,0.01161871,38849.0,38846.0,0.20707333]
[1645866100810,0.01161871,38849.0,38846.0,0.25707333]
[1645866101811,0.01367905,38849.0,38846.0,0.30707333]
[1645866102111,0.01161871,38849.0,38846.0,0.30707333]
[1645866103212,0.01191748,38849.0,38846.0,0.30707333]
[1645866103477,0.01191748,38849.0,38847.0,0.0474]
[1645866104274,0.01161871,38849.0,38847.0,0.0474]
[1645866104471,0.07731214,38843.0,38841.0,0.004]
[1645866104670,0.07731214,38843.0,38842.0,0.0474]
[1645866106070,0.07739509,38843.0,38842.0,0.0474]
[1645866106270,0.07958076,38843.0,38842.0,0.0474]
[1645866107312,0.08184938,38843.0,38842.0,0.0474]
[1645866107913,0.08184938,38843.0,38842.0,0.0534]
[1645866108114,0.06684938,38843.0,38842.0,0.0534]
[1645866108314,0.07117834,38843.0,38842.0,0.0534]
[1645866109418,0.07542435,38843.0,38842.0,0.0474]
[1645866109814,0.07323868,38843.0,38842.0,0.0474]
[1645866110014,0.07323868,38843.0,38842.0,0.0534]
[1645866110415,0.07393085,38843.0,38842.0,0.0534]
[1645866110815,0.07187051,38843.0,38842.0,0.0534]
[1645866111265,0.07187051,38843.0,38842.0,0.0474]
[1645866111664,0.07393085,38843.0,38842.0,0.0474]
[1645866112866,0.07529902,38843.0,38842.0,0.0474]
[1645866113666,0.07529902,38843.0,38842.0,0.81976]
[1645866113865,0.07611652,38843.0,38842.0,0.77236]
[1645866114266,0.07393085,38843.0,38842.0,0.77236]
[1645866114466,0.07393085,38843.0,38842.0,0.82377705]
[1645866114915,0.07599119,38843.0,38842.0,0.82377705]
[1645866115113,0.07393085,38843.0,38842.0,0.82377705]
[1645866115312,0.07393085,38843.0,38842.0,0.82159138]
[1645866116112,0.07393085,38843.0,38842.0,0.81953104]
[1645866116316,0.7781,38863.0,38848.0,0.00741427]
[1645866116616,0.00120498,38850.0,38849.0,0.0515]
[1645866116814,0.30059458,38863.0,38850.0,1.2]
[1645866117013,0.55285284,38866.0,38851.0,0.0515]
[1645866117219,0.30187235,38865.0,38851.0,0.0515]
[1645866117419,0.2256,38866.0,38851.0,0.180171]
[1645866117420,0.30167637,38863.0,38851.0,0.180171]
[1645866117617,0.10031574,38861.0,38851.0,0.0515]
[1645866117816,0.02576,38863.0,38851.0,0.0515]
[1645866117817,0.3043896,38860.0,38851.0,0.0515]
[1645866118019,0.3256,38866.0,38851.0,0.0515]
[1645866118020,0.23104525,38861.0,38851.0,0.0515]
[1645866118316,0.3043896,38860.0,38851.0,0.0515]
[1645866118588,0.3043896,38860.0,38848.0,0.00741427]
[1645866119187,0.3043896,38860.0,38848.0,0.05891427]
[1645866119386,0.23104525,38863.0,38848.0,0.05891427]
[1645866119586,0.23104525,38863.0,38845.0,0.025]
[1645866119587,1.2,38861.0,38845.0,0.025]
[1645866119798,0.13072951,38845.0,38834.0,0.0999]
[1645866119990,0.13072951,38845.0,38826.0,0.05]
[1645866119991,0.13072951,38835.0,38826.0,0.05]
[1645866120192,0.23104525,38827.0,38821.0,0.32545626]
[1645866120388,0.23104525,38825.0,38817.0,0.32545626]
[1645866120588,0.23104525,38825.0,38820.0,0.23538999]
[1645866120589,0.30349302,38824.0,38820.0,0.23538999]
[1645866120987,0.06442,38834.0,38820.0,0.23538999]
[1645866120988,0.41379302,38833.0,38820.0,0.23538999]
[1645866121189,0.23104525,38827.0,38820.0,0.23569285]
[1645866121391,0.41379302,38833.0,38820.0,0.23569285]
[1645866121392,0.10031574,38829.0,38820.0,0.23569285]
[1645866121595,0.10031574,38832.0,38820.0,0.23569285]
[1645866121787,0.13072951,38833.0,38820.0,0.23569285]
[1645866121788,0.39843836,38831.0,38820.0,0.23569285]
[1645866121988,0.39843836,38831.0,38826.0,0.23448482]
[1645866122416,0.30349302,38831.0,38826.0,0.23448482]
[1645866122913,0.09494534,38832.0,38826.0,0.23448482]
[1645866123413,0.09494534,38832.0,38819.0,0.62894928]
[1645866123614,0.0103,38837.0,38827.0,9.208e-05]
[1645866123615,0.09494534,38828.0,38827.0,9.208e-05]
[1645866124720,0.13072951,38823.0,38821.0,9.418e-05]
[1645866124920,0.1,38822.0,38821.0,9.418e-05]
[1645866125516,0.13072951,38823.0,38821.0,9.418e-05]
[1645866125969,0.13072951,38823.0,38821.0,0.00309418]
[1645866127069,1.2,38821.0,38812.0,0.05]
[1645866127270,1.2,38821.0,38807.0,0.002]
[1645866127271,0.25143485,38814.0,38807.0,0.002]
[1645866127475,0.17311357,38820.0,38807.0,0.002]
[1645866127476,0.22567485,38810.0,38807.0,0.002]
[1645866128468,0.22567485,38810.0,38808.0,0.00340321]
[1645866128671,0.22567485,38812.0,38808.0,0.00340321]
[1645866129069,0.3,38818.0,38808.0,0.00340321]
[1645866129070,0.22567485,38810.0,38808.0,0.00340321]
[1645866129468,0.22567485,38810.0,38808.0,0.0031]
[1645866130118,0.52567485,38810.0,38808.0,0.0031]
[1645866130416,0.22567485,38810.0,38808.0,0.0031]
[1645866131015,0.22567485,38810.0,38804.0,0.004]
[1645866131016,1.2,38808.0,38804.0,0.004]
[1645866131217,0.13072951,38806.0,38804.0,0.004]
[1645866131414,0.43072951,38806.0,38803.0,0.0011]
[1645866132015,0.43072951,38806.0,38804.0,0.00027831]
[1645866132317,0.53072951,38806.0,38804.0,0.00027831]
[1645866132515,0.43072951,38806.0,38804.0,0.00027831]
[1645866133115,0.43072951,38806.0,38803.0,0.0011]
[1645866133315,0.43072951,38806.0,38804.0,0.00027831]
[1645866134164,0.43072951,38806.0,38805.0,0.65529512]
[1645866135369,0.43072951,38806.0,38805.0,0.65329512]
[1645866136166,0.13072951,38806.0,38805.0,0.65329512]
[1645866136768,0.43072951,38806.0,38805.0,0.65329512]
[1645866138129,0.43072951,38806.0,38805.0,0.65529512]
[1645866139127,0.13072951,38811.0,38805.0,0.65529512]
[1645866139432,0.22567485,38811.0,38805.0,0.65329512]
[1645866139625,0.3,38816.0,38805.0,0.65329512]
[1645866139827,0.13072951,38814.0,38805.0,0.65329512]
[1645866140125,0.13072951,38814.0,38811.0,0.21698009]
[1645866140126,0.39494534,38813.0,38811.0,0.21698009]
[1645866140525,0.3,38812.0,38811.0,0.21698009]
[1645866140981,0.13072951,38810.0,38808.0,0.00027934]
[1645866141181,0.09494534,38809.0,38808.0,0.00027934]
[1645866141385,0.09494534,38809.0,38805.0,0.65329512]
[1645866141386,0.39494534,38809.0,38805.0,0.65329512]